[Event "2nd Bieszczady Chess-ch B 2022"]
[Site "Bystre"]
[Date "2022.07.18"]
[Round "1.9"]
[White "Krzyzek, Daniel"]
[Black "Giefert, Sara"]
[Result "0-1"]
[ECO "A15"]
[WhiteElo "1182"]
[BlackElo "1692"]
[Annotator "NA COMBH"]
[PlyCount "102"]
[EventDate "2022.07.17"]
[EventCountry "POL"]
[SourceTitle "playchess.com"]
[Source "ChessBase"]
[SourceQuality "1"]
[TimeControl "5400+30"]

1. c4 {[%emt 0:00:02]} Nf6 {[%emt 0:00:06]} 2. d3 {[%emt 0:00:19]} d6 {[%emt 0:00:12]} 3. Nc3 {[%emt 0:00:11]} g6 {[%emt 0:00:16]} 4. g3 {[%emt 0:00:10]} Bg7 {[%emt 0:00:18]} 5. Bg2 {[%emt 0:00:08]} Nbd7 {[%emt 0:00:18]} 6. e3 {[%emt 0:01:10]} e5 {[%emt 0:00:34]} 7. Nge2 {[%emt 0:00:14]} O-O {[%emt 0:00:19]} 8. O-O {[%emt 0:00:15]} a5 {[%emt 0:00:32]} 9. a3 {[%emt 0:00:40]} c6 {[%emt 0:01:27]} 10. b3 {[%emt 0:01:10]} Qe7 {[%emt 0:00:58]} 11. Bb2 {[%emt 0:00:58]} Ne8 {[%emt 0:00:54]} 12. f3 {[%emt 0:02:16]} f5 {[%emt 0:01:09]} 13. e4 {[%emt 0:00:46]} Nc5 {[%emt 0:01:51]} 14. b4 {[%emt 0:01:47]} axb4 {[%emt 0:00:30]} 15. axb4 {[%emt 0:00:15]} Rxa1 {[%emt 0:00:03]} 16. Bxa1 {[%emt 0:00:10]} Ne6 {[%emt 0:00:48]} 17. Qa4 {[%emt 0:01:42]} Nf6 {[%emt 0:01:57]} 18. Qb3 {[%emt 0:02:16]} Kh8 {[%emt 0:01:15]} 19. Na4 {[%emt 0:03:07]} Bd7 {[%emt 0:03:37]} 20. Rc1 {[%emt 0:03:30]} Bh6 {[%emt 0:04:29]} 21. Rc2 {[%emt 0:01:37]} Be3+ {[%emt 0:02:17]} 22. Kh1 {[%emt 0:00:28]} Nd4 {[%emt 0:00:35]} 23. Nxd4 {[%emt 0:00:19]} exd4 {[%emt 0:00:06]} 24. Nb6 {[%emt 0:03:22]} Be8 {[%emt 0:03:05]} 25. Ra2 {[%emt 0:04:18]} Bf7 {[%emt 0:08:40]} 26. Qc2 {[%emt 0:04:40]} Qc7 {[%emt 0:06:27]} 27. Na4 {[%emt 0:04:10]} b5 {[%emt 0:01:32]} 28. Nb2 {[%emt 0:01:31]} Qb7 {[%emt 0:02:36]} 29. Nd1 {[%emt 0:06:08]} Be6 {[%emt 0:01:19]} 30. Nxe3 {[%emt 0:01:16]} dxe3 {[%emt 0:00:08]} 31. Bxf6+ {[%emt 0:03:23]} Rxf6 {[%emt 0:00:12]} 32. Qc3 {[%emt 0:01:11]} Kg7 {[%emt 0:00:35]} 33. exf5 {[%emt 0:01:00]} gxf5 {[%emt 0:00:36]} 34. Qd4 {[%emt 0:03:15]} Kg6 {[%emt 0:01:00]} 35. Qc3 {[%emt 0:04:08]} d5 {[%emt 0:02:23]} 36. cxd5 {[%emt 0:02:30]} Bxd5 {[%emt 0:01:30]} 37. Re2 {[%emt 0:00:45]} Re6 {[%emt 0:01:17]} 38. d4 {[%emt 0:00:29]} Qe7 {[%emt 0:00:36]} 39. f4 {[%emt 0:00:27]} Bc4 {[%emt 0:00:30]} 40. Re1 {[%emt 0:00:47]} e2 {[%emt 0:00:52]} 41. g4 {[%emt 0:01:31]} fxg4 {[%emt 0:04:06]} 42. Qg3 {[%emt 0:01:11]} h5 {[%emt 0:01:23]} 43. h3 {[%emt 0:01:05]} Re3 {[%emt 0:01:12]} 44. Qf2 {[%emt 0:01:20]} gxh3 {[%emt 0:01:30]} 45. f5+ {[%emt 0:00:37]} Kf7 {[%emt 0:00:43]} 46. Bf3 {[%emt 0:00:49]} Rxf3 {[%emt 0:00:15]} 47. Qg1 {[%emt 0:01:53]} Rf1 {[%emt 0:00:19]} 48. f6 {[%emt 0:01:51]} Rxg1+ {[%emt 0:00:39]} 49. Rxg1 {[%emt 0:00:03]} Qe4+ {[%emt 0:00:37]} 50. Kh2 {[%emt 0:00:05]} e1=R 51. Rxe1 {[%emt 0:00:34]} Qg2# {[%emt 0:00:24]} 0-1

[Event "2nd Bieszczady Chess-ch B 2022"]
[Site "Bystre"]
[Date "2022.07.18"]
[Round "1.10"]
[White "Panczuk, Grzegorz"]
[Black "Hrabinska, Anna"]
[Result "1-0"]
[ECO "D96"]
[WhiteElo "1684"]
[BlackElo "1179"]
[Annotator "NA RC COMBH"]
[PlyCount "89"]
[EventDate "2022.07.17"]
[EventCountry "POL"]
[SourceTitle "playchess.com"]
[Source "ChessBase"]
[SourceQuality "1"]
[TimeControl "5400+30"]

1. d4 {[%emt 0:00:04]} d5 {[%emt 0:00:06]} 2. c4 {[%emt 0:00:05]} c6 {[%emt 0:00:11]} 3. Nc3 {[%emt 0:00:05]} g6 {[%emt 0:00:15]} 4. Nf3 {[%emt 0:00:39]} Nf6 {[%emt 0:00:12]} 5. Bg5 {[%emt 0:01:24]} Bg7 {[%emt 0:00:13]} 6. h4 {[%emt 0:00:36]} O-O {[%emt 0:00:52]} 7. e3 {[%emt 0:01:54]} Bf5 {[%emt 0:01:44]} 8. Nd2 {[%emt 0:08:07]} Re8 {[%emt 0:05:18]} 9. h5 {[%emt 0:07:05]} gxh5 {[%emt 0:08:06]} 10. Bxf6 {[%emt 0:01:21]} Bxf6 {[%emt 0:00:17]} 11. cxd5 {[%emt 0:00:11]} cxd5 {[%emt 0:01:12]} 12. Qxh5 {[%emt 0:03:27]} Bg6 {[%emt 0:01:30]} 13. Qxd5 {[%emt 0:03:58]} Nc6 {[%emt 0:01:44]} 14. a3 {[%emt 0:03:40]} e5 {[%emt 0:01:33]} 15. Qxd8 {[%emt 0:00:37]} Raxd8 {[%emt 0:00:55]} 16. d5 {[%emt 0:00:45]} Nd4 {[%emt 0:10:34]} 17. Rc1 {[%emt 0:06:48]} Nf5 {[%emt 0:08:48]} 18. Nde4 {[%emt 0:06:27]} Bg7 {[%emt 0:01:22]} 19. Bb5 {[%emt 0:02:00]} Re7 {[%emt 0:01:33]} 20. g4 {[%emt 0:03:50]} Nh6 {[%emt 0:07:37]} 21. d6 {[%emt 0:07:35]} Re6 {[%emt 0:04:44]} 22. Nc5 {[%emt 0:03:06]} Rdxd6 {[%emt 0:03:20]} 23. Nxe6 {[%emt 0:02:10]} Rxe6 {[%emt 0:00:12]} 24. f3 {[%emt 0:00:18]} a6 {[%emt 0:05:23]} 25. Bc4 {[%emt 0:01:33]} Rc6 {[%emt 0:01:36]} 26. Bd5 {[%emt 0:00:55]} Rb6 {[%emt 0:00:50]} 27. b4 {[%emt 0:01:06]} Kf8 {[%emt 0:00:49]} 28. Na4 {[%emt 0:07:30]} Rd6 {[%emt 0:00:58]} 29. e4 {[%emt 0:03:16]} b5 {[%emt 0:00:47]} 30. Rc8+ {[%emt 0:00:42]} Ke7 {[%emt 0:00:09]} 31. Nc5 {[%emt 0:00:39]} Kf6 {[%emt 0:01:59]} 32. Ke2 {[%emt 0:01:02]} Kg5 {[%emt 0:00:44]} 33. Ke3 {[%emt 0:01:39]} f5 {[%emt 0:02:10]} 34. gxf5 {[%emt 0:02:34]} Bxf5 {[%emt 0:00:39]} 35. Rg1+ {[%emt 0:00:39]} Kf6 {[%emt 0:00:12]} 36. Rc7 {[%emt 0:00:14]} Bf8 {[%emt 0:00:42]} 37. Rc6 {[%emt 0:05:08]} Rxc6 {[%emt 0:00:51]} 38. Bxc6 {[%emt 0:00:09]} Bc8 {[%emt 0:01:18]} 39. Nd7+ {[%emt 0:00:27]} Ke7 {[%emt 0:00:10]} 40. Nxf8 {[%emt 0:00:06]} Kxf8 {[%emt 0:00:09]} 41. Rh1 {[%emt 0:01:10]} Kg7 {[%emt 0:00:12]} 42. Rd1 {[%emt 0:00:30]} Nf7 {[%emt 0:00:26]} 43. Bd7 {[%emt 0:00:09]} Bb7 {[%emt 0:00:17]} 44. Be8 {[%emt 0:00:27]} h5 {[%emt 0:01:00]} 45. Rd7 {[%emt 0:00:29]} 1-0

[Event "2nd Bieszczady Chess-ch B 2022"]
[Site "Bystre"]
[Date "2022.07.18"]
[Round "1.11"]
[White "Michalak, Leon"]
[Black "Strojek, Kazimierz"]
[Result "0-1"]
[ECO "C01"]
[WhiteElo "1154"]
[BlackElo "1668"]
[Annotator "NA COMBH"]
[PlyCount "68"]
[EventDate "2022.07.17"]
[EventCountry "POL"]
[SourceTitle "playchess.com"]
[Source "ChessBase"]
[SourceQuality "1"]
[TimeControl "5400+30"]

1. e4 {[%emt 0:00:02]} e6 {[%emt 0:00:25]} 2. d4 {[%emt 0:00:06]} d5 3. exd5 exd5 {[%emt 0:00:49]} 4. Bd3 {[%emt 0:00:48]} Bd6 {[%emt 0:00:06]} 5. c3 {[%emt 0:00:04]} Nf6 {[%emt 0:00:16]} 6. Bg5 {[%emt 0:00:39]} O-O {[%emt 0:00:09]} 7. Ne2 {[%emt 0:00:44]} h6 {[%emt 0:00:50]} 8. Bh4 {[%emt 0:00:21]} Nbd7 {[%emt 0:02:06]} 9. O-O {[%emt 0:00:15]} c6 {[%emt 0:00:23]} 10. Nd2 {[%emt 0:04:01]} Qc7 {[%emt 0:00:19]} 11. Bg3 {[%emt 0:00:28]} Re8 {[%emt 0:00:37]} 12. Re1 {[%emt 0:02:34]} Nf8 {[%emt 0:00:31]} 13. Nf3 {[%emt 0:01:11]} Ne4 {[%emt 0:03:32]} 14. Bxd6 {[%emt 0:00:39]} Qxd6 {[%emt 0:00:52]} 15. Ng3 {[%emt 0:00:58]} f5 {[%emt 0:00:28]} 16. Ne5 {[%emt 0:01:34]} g6 {[%emt 0:06:21]} 17. Nf1 {[%emt 0:04:15]} Kg7 {[%emt 0:03:13]} 18. Nd2 {[%emt 0:01:48]} Be6 {[%emt 0:05:03]} 19. Nb3 {[%emt 0:04:09]} Nd7 {[%emt 0:01:20]} 20. Nxd7 {[%emt 0:01:23]} Bxd7 {[%emt 0:00:03]} 21. f3 {[%emt 0:00:29]} Ng5 {[%emt 0:01:03]} 22. Qd2 {[%emt 0:00:58]} b6 {[%emt 0:01:13]} 23. Rxe8 {[%emt 0:03:21]} Rxe8 {[%emt 0:00:01]} 24. Re1 {[%emt 0:00:04]} Kf6 {[%emt 0:04:44]} 25. Rxe8 {[%emt 0:01:01]} Bxe8 {[%emt 0:00:07]} 26. Nc1 {[%emt 0:00:37]} Nf7 {[%emt 0:03:32]} 27. Bc2 {[%emt 0:00:55]} Bd7 {[%emt 0:01:02]} 28. Nd3 {[%emt 0:00:22]} g5 {[%emt 0:00:26]} 29. Qe2 {[%emt 0:01:02]} f4 {[%emt 0:05:49]} 30. Nf2 {[%emt 0:04:34]} Qe7 {[%emt 0:00:21]} 31. Qd1 {[%emt 0:02:20]} Qe3 {[%emt 0:00:31]} 32. Kf1 {[%emt 0:00:21]} Nd6 {[%emt 0:00:44]} 33. Qd3 {[%emt 0:01:22]} Qc1+ {[%emt 0:03:37]} 34. Nd1 {[%emt 0:01:24]} Bf5 {[%emt 0:00:29]} 0-1

[Event "2nd Bieszczady Chess-ch B 2022"]
[Site "Bystre"]
[Date "2022.07.19"]
[Round "3.1"]
[White "Tymrakiewicz, Marianna"]
[Black "Strojek, Kazimierz"]
[Result "1-0"]
[ECO "C01"]
[WhiteElo "1819"]
[BlackElo "1668"]
[Annotator "NA RC COMBH"]
[PlyCount "67"]
[EventDate "2022.07.17"]
[EventCountry "POL"]
[SourceTitle "playchess.com"]
[Source "ChessBase"]
[SourceQuality "1"]
[TimeControl "5400+30"]

1. e4 {[%emt 0:00:03]} e6 {[%emt 0:02:22]} 2. d4 {[%emt 0:00:05]} d5 {[%emt 0:00:05]} 3. exd5 {[%emt 0:00:15]} exd5 {[%emt 0:00:01]} 4. Bd3 {[%emt 0:00:13]} Bd6 {[%emt 0:00:15]} 5. Nf3 {[%emt 0:01:07]} Nf6 {[%emt 0:01:02]} 6. Bg5 {[%emt 0:02:10]} h6 {[%emt 0:01:05]} 7. Bh4 {[%emt 0:02:10]} Qe7+ {[%emt 0:00:19]} 8. Be2 {[%emt 0:03:00]} O-O {[%emt 0:00:25]} 9. O-O {[%emt 0:00:58]} Bf5 {[%emt 0:08:00]} 10. Re1 {[%emt 0:06:28]} Qd8 {[%emt 0:00:23]} 11. Bd3 {[%emt 0:03:29]} Bxd3 {[%emt 0:04:01]} 12. Qxd3 {[%emt 0:00:17]} c6 {[%emt 0:00:08]} 13. Nbd2 {[%emt 0:09:23]} Nbd7 {[%emt 0:00:09]} 14. Ne5 {[%emt 0:10:20]} Qc7 {[%emt 0:01:33]} 15. f4 {[%emt 0:04:45]} Rae8 {[%emt 0:04:15]} 16. c3 {[%emt 0:05:25]} Nh5 {[%emt 0:19:59]} 17. Qf5 {[%emt 0:04:34]} Bxe5 {[%emt 0:02:07]} 18. fxe5 {[%emt 0:01:27]} g6 {[%emt 0:00:21]} 19. Qg4 {[%emt 0:01:37]} Ng7 {[%emt 0:00:54]} 20. Rf1 {[%emt 0:00:28]} Re6 {[%emt 0:00:22]} 21. Bg3 {[%emt 0:01:05]} Qd8 22. Nf3 f5 {[%emt 0:16:08]} 23. exf6 {[%emt 0:01:32]} Nxf6 {[%emt 0:01:18]} 24. Qxg6 {[%emt 0:05:00]} Ne4 {[%emt 0:01:16]} 25. Qg4 {[%emt 0:00:33]} Qe8 {[%emt 0:06:10]} 26. Ne5 {[%emt 0:07:31]} Ref6 {[%emt 0:06:26]} 27. Bh4 {[%emt 0:10:09]} Rxf1+ {[%emt 0:01:19]} 28. Rxf1 {[%emt 0:00:02]} Rxf1+ {[%emt 0:00:20]} 29. Kxf1 {[%emt 0:00:02]} Qe6 {[%emt 0:00:51]} 30. Qxe6+ {[%emt 0:02:38]} Nxe6 {[%emt 0:00:02]} 31. Ke2 {[%emt 0:00:15]} Kg7 {[%emt 0:00:46]} 32. Bf2 {[%emt 0:00:58]} Nf4+ {[%emt 0:02:01]} 33. Kf3 {[%emt 0:00:11]} Nd3 {[%emt 0:00:16]} 34. Nxd3 {[%emt 0:00:08]} 1-0

[Event "2nd Bieszczady Chess-ch B 2022"]
[Site "Bystre"]
[Date "2022.07.19"]
[Round "3.2"]
[White "Warchol, Jacek"]
[Black "Polak, Sylwia"]
[Result "0-1"]
[ECO "C07"]
[WhiteElo "1785"]
[BlackElo "1574"]
[Annotator "NA RC COMBH"]
[PlyCount "121"]
[EventDate "2022.07.17"]
[EventCountry "POL"]
[SourceTitle "playchess.com"]
[Source "ChessBase"]
[SourceQuality "1"]
[TimeControl "5400+30"]

1. e4 {[%emt 0:00:04]} e6 {[%emt 0:00:12]} 2. d4 {[%emt 0:00:10]} d5 {[%emt 0:00:06]} 3. Nd2 {[%emt 0:01:14]} c5 {[%emt 0:00:05]} 4. c3 {[%emt 0:00:31]} cxd4 {[%emt 0:01:16]} 5. cxd4 {[%emt 0:00:13]} dxe4 {[%emt 0:00:42]} 6. Nxe4 {[%emt 0:00:31]} Nc6 {[%emt 0:00:53]} 7. Nf3 {[%emt 0:01:14]} Nf6 {[%emt 0:00:41]} 8. Nxf6+ {[%emt 0:03:01]} Qxf6 {[%emt 0:02:03]} 9. Bb5 {[%emt 0:03:44]} Bb4+ {[%emt 0:02:19]} 10. Bd2 {[%emt 0:00:37]} Bxd2+ {[%emt 0:00:28]} 11. Qxd2 {[%emt 0:00:08]} Bd7 {[%emt 0:02:01]} 12. O-O {[%emt 0:00:44]} O-O {[%emt 0:00:34]} 13. Ne5 {[%emt 0:01:54]} Qe7 {[%emt 0:00:47]} 14. Bxc6 {[%emt 0:02:10]} Bxc6 {[%emt 0:03:55]} 15. Nxc6 {[%emt 0:00:12]} bxc6 {[%emt 0:00:06]} 16. Qc3 {[%emt 0:00:10]} Rfd8 {[%emt 0:03:02]} 17. Qxc6 {[%emt 0:04:12]} Qb4 {[%emt 0:00:15]} 18. Qc3 {[%emt 0:01:01]} Qxd4 {[%emt 0:01:00]} 19. Qxd4 {[%emt 0:01:39]} Rxd4 {[%emt 0:00:05]} 20. Rfd1 {[%emt 0:00:16]} Rad8 {[%emt 0:00:40]} 21. Rxd4 {[%emt 0:00:45]} Rxd4 {[%emt 0:00:13]} 22. Kf1 {[%emt 0:00:17]} Rd2 {[%emt 0:04:31]} 23. Rc1 {[%emt 0:01:24]} g6 {[%emt 0:00:33]} 24. Rc8+ {[%emt 0:00:23]} Kg7 {[%emt 0:00:05]} 25. Rb8 {[%emt 0:00:05]} h5 {[%emt 0:02:51]} 26. a4 {[%emt 0:03:38]} a5 {[%emt 0:00:46]} 27. Ke1 {[%emt 0:06:00]} Rc2 {[%emt 0:01:31]} 28. Rb5 {[%emt 0:00:12]} Kf6 {[%emt 0:01:32]} 29. b3 {[%emt 0:02:09]} Rb2 {[%emt 0:00:21]} 30. g3 {[%emt 0:00:16]} e5 {[%emt 0:19:40]} 31. Rxa5 {[%emt 0:01:26]} Rxb3 {[%emt 0:00:28]} 32. Ra8 {[%emt 0:00:11]} Rb2 {[%emt 0:00:48]} 33. a5 {[%emt 0:00:37]} Ra2 {[%emt 0:00:54]} 34. a6 {[%emt 0:00:13]} Kf5 {[%emt 0:02:06]} 35. f3 {[%emt 0:08:51]} Kf6 {[%emt 0:02:49]} 36. a7 {[%emt 0:03:05]} Kg7 {[%emt 0:03:41]} 37. Kd1 {[%emt 0:01:00]} Kf6 {[%emt 0:00:30]} 38. Kc1 {[%emt 0:00:16]} Kg7 {[%emt 0:00:17]} 39. Kb1 {[%emt 0:00:17]} Ra6 {[%emt 0:00:15]} 40. Kc2 {[%emt 0:00:12]} Kf6 {[%emt 0:00:30]} 41. Kd3 {[%emt 0:01:01]} Ra1 {[%emt 0:00:20]} 42. h4 {[%emt 0:11:36]} Rd1+ {[%emt 0:11:11]} 43. Ke2 {[%emt 0:01:42]} Ra1 {[%emt 0:00:05]} 44. g4 {[%emt 0:00:38]} Ra2+ {[%emt 0:01:23]} 45. Ke3 {[%emt 0:02:38]} Ra1 {[%emt 0:00:44]} 46. Ke4 {[%emt 0:01:07]} Re1+ {[%emt 0:00:21]} 47. Kd5 {[%emt 0:00:11]} Rd1+ {[%emt 0:00:10]} 48. Kc6 {[%emt 0:00:07]} Rc1+ {[%emt 0:00:02]} 49. Kd7 {[%emt 0:00:12]} Ra1 {[%emt 0:09:50]} 50. Ke8 {[%emt 0:04:40]} hxg4 {[%emt 0:08:15]} 51. fxg4 {[%emt 0:01:16]} e4 {[%emt 0:00:50]} 52. Kf8 {[%emt 0:04:56]} e3 {[%emt 0:02:04]} 53. g5+ {[%emt 0:01:44]} Kf5 {[%emt 0:01:30]} 54. Kxf7 {[%emt 0:01:25]} e2 {[%emt 0:00:35]} 55. Re8 {[%emt 0:02:01]} Rxa7+ {[%emt 0:00:13]} 56. Kg8 {[%emt 0:00:18]} Ra8 {[%emt 0:00:51]} 57. Rxa8 {[%emt 0:00:03]} e1=Q {[%emt 0:00:09]} 58. Rf8+ {[%emt 0:02:07]} Kg4 {[%emt 0:00:32]} 59. Rf6 {[%emt 0:01:41]} Kh5 {[%emt 0:03:29]} 60. Kg7 {[%emt 0:06:03]} Qxh4 {[%emt 0:00:36]} 61. Kf7 0-1

[Event "2nd Bieszczady Chess-ch B 2022"]
[Site "Bystre"]
[Date "2022.07.19"]
[Round "3.3"]
[White "Labedz, Dawid"]
[Black "Sola, Wojciech"]
[Result "1/2-1/2"]
[ECO "B35"]
[WhiteElo "1562"]
[BlackElo "1780"]
[Annotator "NA RC COMBH"]
[PlyCount "57"]
[EventDate "2022.07.17"]
[EventCountry "POL"]
[SourceTitle "playchess.com"]
[Source "ChessBase"]
[SourceQuality "1"]
[TimeControl "5400+30"]

1. e4 {[%emt 0:00:04]} c5 {[%emt 0:00:08]} 2. Nf3 {[%emt 0:00:05]} g6 {[%emt 0:00:18]} 3. d4 {[%emt 0:00:31]} cxd4 {[%emt 0:00:21]} 4. Nxd4 {[%emt 0:00:08]} Bg7 {[%emt 0:00:14]} 5. Nc3 {[%emt 0:00:39]} Nc6 {[%emt 0:00:40]} 6. Be3 {[%emt 0:00:17]} Nf6 {[%emt 0:00:43]} 7. Bc4 {[%emt 0:01:09]} O-O {[%emt 0:09:49]} 8. f3 {[%emt 0:00:56]} Qb6 {[%emt 0:06:12]} 9. Bb3 {[%emt 0:15:49]} Nxe4 {[%emt 0:28:14]} 10. Nd5 {[%emt 0:09:27]} Qa5+ {[%emt 0:02:16]} 11. c3 {[%emt 0:00:55]} Nf6 {[%emt 0:03:55]} 12. Nxc6 {[%emt 0:02:30]} dxc6 {[%emt 0:00:08]} 13. Nxe7+ {[%emt 0:00:30]} Kh8 {[%emt 0:00:15]} 14. Nxc8 {[%emt 0:00:11]} Raxc8 {[%emt 0:04:37]} 15. O-O {[%emt 0:01:49]} Rcd8 {[%emt 0:02:55]} 16. Qc2 {[%emt 0:02:22]} Rfe8 {[%emt 0:13:56]} 17. Bf2 {[%emt 0:01:39]} Kg8 {[%emt 0:00:12]} 18. Rad1 {[%emt 0:01:57]} Qc7 {[%emt 0:02:33]} 19. a4 {[%emt 0:01:16]} b6 {[%emt 0:00:09]} 20. Rfe1 {[%emt 0:06:28]} Bh6 {[%emt 0:07:21]} 21. Rxd8 {[%emt 0:03:02]} Rxd8 {[%emt 0:04:11]} 22. Rd1 {[%emt 0:01:05]} c5 {[%emt 0:00:33]} 23. Bc4 {[%emt 0:01:22]} Bf4 {[%emt 0:01:01]} 24. Rxd8+ {[%emt 0:01:58]} Qxd8 {[%emt 0:00:10]} 25. Qd3 {[%emt 0:00:28]} Qxd3 {[%emt 0:00:35]} 26. Bxd3 {[%emt 0:00:02]} Kf8 {[%emt 0:00:57]} 27. b4 cxb4 28. cxb4 Bc7 29. a5 1/2-1/2

[Event "2nd Bieszczady Chess-ch B 2022"]
[Site "Bystre"]
[Date "2022.07.19"]
[Round "3.4"]
[White "Biesiadecki, Adam"]
[Black "Kasianczuk, Krzysztof"]
[Result "1-0"]
[ECO "D78"]
[WhiteElo "1776"]
[BlackElo "1557"]
[Annotator "NA RC COMBH"]
[PlyCount "65"]
[EventDate "2022.07.17"]
[EventCountry "POL"]
[SourceTitle "playchess.com"]
[Source "ChessBase"]
[SourceQuality "1"]
[TimeControl "5400+30"]

1. Nf3 {[%emt 0:00:03]} Nf6 {[%emt 0:00:15]} 2. g3 {[%emt 0:00:11]} g6 {[%emt 0:00:19]} 3. Bg2 {[%emt 0:00:05]} Bg7 {[%emt 0:00:08]} 4. O-O {[%emt 0:00:06]} O-O {[%emt 0:00:08]} 5. d4 {[%emt 0:00:08]} d5 {[%emt 0:00:42]} 6. c4 {[%emt 0:00:09]} c6 {[%emt 0:02:25]} 7. Nbd2 {[%emt 0:00:17]} Nbd7 {[%emt 0:00:55]} 8. b3 {[%emt 0:00:13]} Ne4 {[%emt 0:04:10]} 9. Bb2 {[%emt 0:00:17]} Ndf6 {[%emt 0:07:22]} 10. Ne5 {[%emt 0:04:17]} Nxd2 {[%emt 0:02:22]} 11. Qxd2 {[%emt 0:00:10]} e6 {[%emt 0:11:03]} 12. Qc2 {[%emt 0:03:48]} Nd7 {[%emt 0:04:38]} 13. Rad1 {[%emt 0:01:01]} Nxe5 {[%emt 0:02:15]} 14. dxe5 {[%emt 0:00:37]} f5 {[%emt 0:02:56]} 15. exf6 {[%emt 0:01:06]} Bxf6 {[%emt 0:00:17]} 16. e4 {[%emt 0:00:14]} d4 {[%emt 0:05:59]} 17. e5 {[%emt 0:03:43]} Bxe5 {[%emt 0:03:42]} 18. Qe4 {[%emt 0:00:40]} Bg7 {[%emt 0:01:06]} 19. Bxd4 {[%emt 0:00:15]} Bxd4 {[%emt 0:00:11]} 20. Rxd4 {[%emt 0:00:19]} Qf6 {[%emt 0:01:10]} 21. f4 {[%emt 0:00:28]} Qf5 {[%emt 0:02:10]} 22. Qe3 {[%emt 0:01:14]} Re8 {[%emt 0:03:52]} 23. Rfd1 {[%emt 0:01:55]} Kf7 {[%emt 0:02:06]} 24. Re4 {[%emt 0:03:55]} Re7 {[%emt 0:03:19]} 25. Rd8 {[%emt 0:06:05]} Rd7 {[%emt 0:02:25]} 26. Rh8 {[%emt 0:01:35]} Rd1+ {[%emt 0:01:13]} 27. Kf2 {[%emt 0:01:49]} Qa5 {[%emt 0:06:13]} 28. Bf3 {[%emt 0:02:31]} Rd2+ {[%emt 0:02:42]} 29. Be2 {[%emt 0:01:14]} Kg7 {[%emt 0:00:12]} 30. Re8 {[%emt 0:01:22]} Kf7 {[%emt 0:00:16]} 31. R4xe6 {[%emt 0:00:57]} Bxe6 {[%emt 0:06:29]} 32. Qxe6+ {[%emt 0:00:06]} Kg7 {[%emt 0:00:11]} 33. Qg8+ {[%emt 0:00:33]} 1-0

[Event "2nd Bieszczady Chess-ch B 2022"]
[Site "Bystre"]
[Date "2022.07.19"]
[Round "3.5"]
[White "Kulig, Pawel"]
[Black "Trela, Konrad"]
[Result "1/2-1/2"]
[ECO "D15"]
[WhiteElo "1720"]
[BlackElo "1523"]
[Annotator "NA RC COMBH"]
[PlyCount "22"]
[EventDate "2022.07.17"]
[EventCountry "POL"]
[SourceTitle "playchess.com"]
[Source "ChessBase"]
[SourceQuality "1"]
[TimeControl "5400+30"]

1. d4 {[%emt 0:02:47]} d5 {[%emt 0:00:01]} 2. c4 {[%emt 0:00:13]} c6 {[%emt 0:00:01]} 3. Nf3 {[%emt 0:00:31]} Nf6 {[%emt 0:00:20]} 4. Nc3 {[%emt 0:00:13]} a6 {[%emt 0:00:12]} 5. Bg5 {[%emt 0:01:09]} g6 {[%emt 0:12:33]} 6. e3 {[%emt 0:05:29]} Bg7 {[%emt 0:12:00]} 7. cxd5 {[%emt 0:00:49]} cxd5 {[%emt 0:00:55]} 8. Bd3 {[%emt 0:00:07]} Nc6 {[%emt 0:06:34]} 9. a3 {[%emt 0:00:14]} O-O {[%emt 0:01:17]} 10. O-O {[%emt 0:00:07]} Ra7 {[%emt 0:24:23]} 11. Rc1 {[%emt 0:01:16]} Bg4 {[%emt 0:04:06]} 1/2-1/2

[Event "2nd Bieszczady Chess-ch B 2022"]
[Site "Bystre"]
[Date "2022.07.19"]
[Round "3.6"]
[White "Nisztuk, Michal"]
[Black "Tokarz, Izabela"]
[Result "0-1"]
[ECO "B21"]
[WhiteElo "1548"]
[BlackElo "1694"]
[Annotator "NA RC COMBH"]
[PlyCount "96"]
[EventDate "2022.07.17"]
[EventCountry "POL"]
[SourceTitle "playchess.com"]
[Source "ChessBase"]
[SourceQuality "1"]
[TimeControl "5400+30"]

1. e4 {[%emt 0:00:24]} c5 {[%emt 0:00:02]} 2. f4 {[%emt 0:00:11]} Nc6 {[%emt 0:00:36]} 3. c3 {[%emt 0:00:53]} d5 {[%emt 0:01:11]} 4. e5 {[%emt 0:00:27]} d4 {[%emt 0:02:43]} 5. Nf3 {[%emt 0:01:09]} d3 {[%emt 0:08:20]} 6. Qb3 {[%emt 0:03:13]} b6 {[%emt 0:03:28]} 7. Qb5 {[%emt 0:01:16]} Qc7 {[%emt 0:04:08]} 8. Qxd3 {[%emt 0:03:40]} g6 {[%emt 0:02:09]} 9. Na3 {[%emt 0:01:15]} a6 {[%emt 0:00:31]} 10. Nc4 {[%emt 0:02:51]} Bf5 {[%emt 0:11:55]} 11. Qe2 {[%emt 0:01:10]} O-O-O {[%emt 0:02:32]} 12. Ne3 {[%emt 0:02:15]} Bd3 {[%emt 0:00:51]} 13. Qf2 {[%emt 0:00:26]} Bxf1 14. Qxf1 {[%emt 0:00:22]} Kb7 {[%emt 0:04:01]} 15. a4 {[%emt 0:05:34]} f6 {[%emt 0:02:19]} 16. exf6 {[%emt 0:08:53]} Qxf4 {[%emt 0:02:08]} 17. d4 {[%emt 0:03:53]} exf6 {[%emt 0:03:20]} 18. d5 {[%emt 0:04:02]} Ne5 {[%emt 0:01:13]} 19. Nxe5 {[%emt 0:02:16]} Qxe5 {[%emt 0:00:12]} 20. Qf3 {[%emt 0:05:44]} Bd6 {[%emt 0:03:14]} 21. g3 {[%emt 0:02:30]} f5 {[%emt 0:01:02]} 22. O-O {[%emt 0:00:50]} Nf6 {[%emt 0:01:09]} 23. c4 {[%emt 0:02:32]} Ne4 {[%emt 0:02:57]} 24. Ra3 {[%emt 0:03:22]} a5 {[%emt 0:01:47]} 25. Rd3 {[%emt 0:00:21]} Rhf8 {[%emt 0:03:08]} 26. Ng2 {[%emt 0:01:17]} g5 {[%emt 0:01:11]} 27. Ne3 {[%emt 0:04:15]} g4 {[%emt 0:02:16]} 28. Qg2 {[%emt 0:01:04]} Ng5 {[%emt 0:01:10]} 29. Kh1 {[%emt 0:02:56]} Nf3 {[%emt 0:00:18]} 30. Qf2 {[%emt 0:02:16]} Qe4 {[%emt 0:00:33]} 31. Rdd1 {[%emt 0:03:54]} Nd2+ {[%emt 0:00:33]} 32. Kg1 {[%emt 0:00:46]} Nxf1 {[%emt 0:00:13]} 33. Rxf1 {[%emt 0:00:33]} f4 {[%emt 0:00:44]} 34. Qc2 {[%emt 0:01:13]} Qxc2 {[%emt 0:00:23]} 35. Nxc2 {[%emt 0:00:01]} fxg3 {[%emt 0:00:15]} 36. hxg3 {[%emt 0:00:30]} Rxf1+ {[%emt 0:00:12]} 37. Kxf1 {[%emt 0:00:12]} Bxg3 {[%emt 0:00:01]} 38. Bh6 {[%emt 0:02:13]} Rd6 {[%emt 0:00:44]} 39. Bg7 {[%emt 0:00:39]} Rd7 {[%emt 0:00:03]} 40. Bc3 Rf7+ {[%emt 0:00:05]} 41. Kg2 {[%emt 0:02:55]} Bf4 {[%emt 0:00:25]} 42. Ne1 {[%emt 0:00:31]} h5 {[%emt 0:00:05]} 43. Nd3 {[%emt 0:00:44]} h4 {[%emt 0:00:04]} 44. Be1 {[%emt 0:03:44]} h3+ {[%emt 0:00:17]} 45. Kh1 {[%emt 0:01:25]} g3 {[%emt 0:00:06]} 46. Nxf4 {[%emt 0:00:41]} Rxf4 {[%emt 0:00:03]} 47. Bxg3 {[%emt 0:00:35]} Rxc4 {[%emt 0:00:02]} 48. d6 {[%emt 0:03:08]} Kc6 {[%emt 0:00:04]} 0-1